fUST/lending_fUST_20250713
["ID","MTS","AMOUNT","RATE_DAILY","PERIOD"]
[371751369,1752417048605,-460.0,0.0001726,2]
[371751370,1752417048614,-460.0,0.0001726,2]
[371751371,1752417048624,-460.0,0.0001726,2]
[371751372,1752417048633,-460.0,0.0001726,2]
[371751373,1752417048643,-460.0,0.0001726,2]
[371751374,1752417048652,-460.0,0.0001726,2]
[371751375,1752417048661,-460.0,0.0001726,2]
[371751376,1752417048671,-460.0,0.0001726,2]
[371751377,1752417048680,-460.0,0.0001726,2]
[371751378,1752417048690,-460.0,0.0001726,2]
[371751379,1752417048700,-460.0,0.0001726,2]
[371751380,1752417048709,-466.27,0.0001726,2]
[371751381,1752417048718,-460.0,0.0001726,2]
[371751382,1752417048728,-466.38481006,0.0001726,2]
[371751383,1752417048738,-460.0,0.0001726,2]
[371751384,1752417048747,-460.0,0.0001726,2]
[371751385,1752417048756,-229.25,0.0001726,2]
[371751386,1752417048766,-581.35,0.0001726,2]
[371751387,1752417048775,-460.0,0.0001726,2]
[371751388,1752417048784,-460.0,0.0001726,2]
[371751389,1752417048793,-460.0,0.0001726,2]
[371751390,1752417048803,-460.0,0.0001726,2]
[371751391,1752417048812,-460.0,0.0001726,2]
[371751392,1752417048821,-464.75304272,0.0001726,2]
[371751393,1752417048831,-460.0,0.0001726,2]
[371751394,1752417048840,-460.0,0.0001726,2]
[371751395,1752417048849,-460.0,0.0001726,2]
[371751396,1752417048858,-460.0,0.0001726,2]
[371751397,1752417048870,-460.0,0.0001726,2]
[371751398,1752417048879,-460.0,0.0001726,2]
[371751399,1752417048888,-460.0,0.0001726,2]
[371751400,1752417048897,-648.37,0.0001726,2]
[371751401,1752417048907,-673.61,0.0001726,2]
[371751402,1752417048917,-460.0,0.0001726,2]
[371751403,1752417048926,-460.0,0.0001726,2]
[371751404,1752417048937,-474.24551814,0.0001726,2]
[371751405,1752417048947,-557.7,0.0001726,2]
[371751406,1752417048957,-460.0,0.0001726,2]
[371751407,1752417048967,-460.0,0.0001726,2]
[371751408,1752417048976,-460.0,0.0001726,2]
[371751409,1752417048986,-460.0,0.0001726,2]
[371751410,1752417048995,-460.0,0.0001726,2]
[371751411,1752417049004,-460.0,0.0001726,2]
[371751412,1752417049014,-460.0,0.0001726,2]
[371751413,1752417049023,-460.0,0.0001726,2]
[371751414,1752417049033,-460.0,0.0001726,2]
[371751415,1752417049042,-463.71139512,0.0001726,2]
[371751416,1752417049051,-459.59922814,0.0001726,2]
[371751417,1752417049061,-460.0,0.0001726,2]
[371751418,1752417049070,-460.0,0.0001726,2]
[371751419,1752417049080,-460.0,0.0001726,2]
[371751420,1752417049089,-460.0,0.0001726,2]
[371751421,1752417049099,-576.54,0.0001726,2]
[371751422,1752417049108,-460.0,0.0001726,2]
[371751423,1752417049118,-446.5102063,0.0001726,2]
[371751424,1752417049128,-460.0,0.0001726,2]
[371751425,1752417049137,-460.0,0.0001726,2]
[371751426,1752417049147,-312.88,0.0001726,2]
[371751427,1752417049156,-460.0,0.0001726,2]
[371751428,1752417049166,-460.0,0.0001726,2]
[371751429,1752417049176,-1648.08,0.0001726,2]
[371751430,1752417049188,-460.0,0.0001726,2]
[371751431,1752417049198,-460.0,0.0001726,2]
[371751432,1752417049207,-509.50857048,0.0001726,2]
[371751433,1752417049217,-460.0,0.0001726,2]
[371751434,1752417049227,-498.33,0.0001726,2]
[371751435,1752417049237,-460.0,0.0001726,2]
[371751436,1752417049246,-460.0,0.0001726,2]
[371751437,1752417049255,-460.0,0.0001726,2]
[371751438,1752417049265,-460.0,0.0001726,2]
[371751439,1752417049274,-650.21,0.0001726,2]
[371751440,1752417049284,-460.0,0.0001726,2]
[371751441,1752417049295,-460.0,0.0001726,2]
[371751442,1752417049304,-2049.75,0.0001726,2]
[371751443,1752417049314,-460.0,0.0001726,2]
[371751444,1752417049323,-460.0,0.0001726,2]
[371751445,1752417049333,-2391.08,0.0001726,2]
[371751446,1752417049343,-460.0,0.0001726,2]
[371751447,1752417049352,-1185.33,0.0001726,2]
[371751448,1752417049362,-460.0,0.0001726,2]
[371751449,1752417049372,-460.0,0.0001726,2]
[371751450,1752417049383,-226.76280206,0.0001726,2]
[371751451,1752417049394,-460.0,0.0001726,2]
[371751452,1752417049404,-460.0,0.0001726,2]
[371751453,1752417049414,-460.0,0.0001726,2]
[371751454,1752417049425,-460.0,0.0001726,2]
[371751455,1752417049438,-460.0,0.0001726,2]
[371751456,1752417049449,-460.0,0.0001726,2]
[371751457,1752417049459,-460.0,0.0001726,2]
[371751458,1752417049470,-460.0,0.0001726,2]
[371751459,1752417049481,-460.0,0.0001726,2]
[371751460,1752417049491,-460.0,0.0001726,2]
[371751461,1752417049501,-460.0,0.0001726,2]
[371751462,1752417049512,-638.03,0.0001726,2]
[371751463,1752417049522,-566.49,0.0001726,2]
[371751464,1752417049532,-460.0,0.0001726,2]
[371751465,1752417049542,-460.0,0.0001726,2]
[371751466,1752417049551,-460.0,0.0001726,2]
[371751467,1752417049561,-460.0,0.0001726,2]
[371751468,1752417049571,-460.0,0.0001726,2]
[371751469,1752417049580,-566.53,0.0001726,2]
[371751470,1752417049590,-460.0,0.0001726,2]
[371751471,1752417049603,-469.79,0.0001726,2]
[371751472,1752417049614,-460.0,0.0001726,2]
[371751473,1752417049707,-460.0,0.0001726,2]
[371751474,1752417049717,-460.0,0.0001726,2]
[371751475,1752417049727,-533.19,0.0001726,2]
[371751476,1752417049736,-460.0,0.0001726,2]
[371751477,1752417049746,-1700.96,0.0001726,2]
[371751478,1752417049755,-460.0,0.0001726,2]
[371751479,1752417049765,-888.31,0.0001726,2]
[371751480,1752417049775,-460.0,0.0001726,2]
[371751481,1752417049786,-460.0,0.0001726,2]
[371751482,1752417049795,-512.21,0.0001726,2]
[371751483,1752417049805,-460.0,0.0001726,2]
[371751484,1752417049815,-460.0,0.0001726,2]
[371751485,1752417049824,-460.0,0.0001726,2]
[371751486,1752417049834,-460.0,0.0001726,2]
[371751487,1752417049844,-581.54,0.0001726,2]
[371751488,1752417049854,-506.15,0.0001726,2]
[371751489,1752417049865,-2385.39,0.0001726,2]
[371751490,1752417049878,-460.0,0.0001726,2]
[371751491,1752417049887,-460.0,0.0001726,2]
[371751492,1752417049898,-498.33,0.0001726,2]
[371751493,1752417049907,-460.0,0.0001726,2]
[371751494,1752417049918,-470.34353102,0.0001726,2]
[371751495,1752417049928,-460.0,0.0001726,2]
[371751496,1752417049939,-460.0,0.0001726,2]
[371751497,1752417049950,-460.0,0.0001726,2]
[371751498,1752417049959,-460.0,0.0001726,2]
[371751499,1752417049969,-460.0,0.0001726,2]
[371751500,1752417049978,-1227.15,0.0001726,2]
[371751501,1752417049988,-460.0,0.0001726,2]
[371751502,1752417049997,-964.9,0.0001726,2]
[371751503,1752417050007,-460.0,0.0001726,2]
[371751504,1752417050016,-460.0,0.0001726,2]
[371751505,1752417050025,-460.0,0.0001726,2]
[371751506,1752417050035,-151.0,0.0001726,2]
[371751507,1752417050045,-460.0,0.0001726,2]
[371751509,1752417050055,-151.0,0.0001726,2]
[371751511,1752417050063,-460.0,0.0001726,2]
[371751513,1752417050073,-460.0,0.0001726,2]
[371751514,1752417050082,-151.0,0.0001726,2]
[371751515,1752417050091,-460.0,0.0001726,2]
[371751516,1752417050100,-460.0,0.0001726,2]
[371751517,1752417050109,-460.0,0.0001726,2]
[371751518,1752417050119,-500.0,0.00017273,2]
[371751519,1752417050128,-177.559413,0.00017311,2]
[371751520,1752417050138,-500.0,0.0001732,2]
[371751521,1752417050147,-578.16123065,0.00017321,2]
[371751522,1752417050156,-673.82905292,0.00017321,2]
[371751523,1752417050166,-1006.97598134,0.00017321,2]
[371751524,1752417050175,-256.99765276,0.00017321,2]
[371751525,1752417050184,-1000.0,0.00017321,2]
[371751526,1752417050196,-1000.0,0.00017321,2]
[371751527,1752417050205,-1000.0,0.00017321,2]
[371751528,1752417050215,-1000.0,0.00017321,2]
[371751529,1752417050224,-457.43349717,0.00017321,2]
[371751530,1752417050234,-1000.0,0.00017321,2]
[371751531,1752417050243,-500.0,0.00017321,2]
[371751532,1752417050253,-1000.0,0.00017321,2]
[371751533,1752417050263,-1000.0,0.00017321,2]
[371751534,1752417050272,-1000.0,0.00017321,2]
[371751535,1752417050282,-1000.0,0.00017321,2]
[371751536,1752417050291,-505.50054643,0.00017321,2]
[371751537,1752417050301,-357.31698797,0.00017321,2]
[371751538,1752417050311,-500.0,0.00017321,2]
[371751539,1752417050321,-164.73942471,0.00017321,2]
[371751540,1752417050331,-957.35057617,0.00017321,2]
[371751541,1752417050340,-1000.0,0.00017321,2]
[371751542,1752417050349,-1000.0,0.00017321,2]
[371751543,1752417050359,-433.76250258,0.00017321,2]
[371751544,1752417050368,-502.26266064,0.00017321,2]
[371751545,1752417050378,-1000.0,0.00017321,2]
[371751546,1752417050388,-501.25544665,0.00017321,2]
[371751547,1752417050398,-472.30408363,0.00017321,2]
[371751548,1752417050408,-1000.0,0.00017321,2]
[371751549,1752417050418,-151.0,0.00017321,2]
[371751550,1752417050429,-500.0,0.00017386,2]
[371751551,1752417050440,-177.559413,0.00017392,2]
[371751552,1752417050450,-177.559413,0.00017474,2]
[371751553,1752417050460,-987.80547386,0.00017521,2]
[371751554,1752417050469,-460.0,0.00017533,2]
[371751555,1752417050479,-660.78,0.00017533,2]
[371751556,1752417050489,-460.0,0.00017533,2]
[371751557,1752417050504,-460.0,0.00017533,2]
[371751558,1752417050514,-897.35,0.00017533,2]
[371751559,1752417050524,-460.0,0.00017533,2]
[371751560,1752417050533,-500.0,0.00017533,2]
[371751561,1752417050543,-3077.37,0.00017533,2]
[371751562,1752417050552,-460.0,0.00017533,2]
[371751563,1752417050562,-485.94,0.00017533,2]
[371751564,1752417050571,-460.0,0.00017533,2]
[371751565,1752417050580,-460.00000048,0.00017533,2]
[371751566,1752417050590,-782.43,0.00017533,2]
[371751567,1752417050599,-1292.91,0.00017533,2]
[371751568,1752417050609,-676.84,0.00017533,2]
[371751569,1752417050618,-460.0,0.00017533,2]
[371751570,1752417050628,-557.4,0.00017534,2]
[371751571,1752417050638,-460.0,0.00017534,2]
[371751572,1752417050647,-460.0,0.00017534,2]
[371751573,1752417050656,-460.0,0.00017534,2]
[371751574,1752417050666,-460.0,0.00017534,2]
[371751575,1752417050676,-460.0,0.00017534,2]
[371751576,1752417050686,-460.0,0.00017534,2]
[371751577,1752417050697,-460.0,0.00017534,2]
[371751578,1752417050706,-460.0,0.00017534,2]
[371751579,1752417050715,-460.0,0.00017534,2]
[371751580,1752417050725,-460.0,0.00017534,2]
[371751581,1752417050735,-460.0,0.00017534,2]
[371751582,1752417050745,-460.0,0.00017534,2]
[371751583,1752417050754,-460.0,0.00017534,2]
[371751584,1752417050763,-460.0,0.00017534,2]
[371751585,1752417050772,-460.0,0.00017534,2]
[371751586,1752417050781,-199.79213796,0.00017534,2]
[371751587,1752417050790,-460.0,0.00017534,2]
[371751588,1752417050799,-460.0,0.00017534,2]
[371751589,1752417050809,-466.27,0.00017534,2]
[371751590,1752417050818,-460.0,0.00017534,2]
[371751591,1752417050827,-460.0,0.00017534,2]
[371751592,1752417050836,-460.0,0.00017534,2]
[371751593,1752417050846,-581.35,0.00017534,2]
[371751594,1752417050856,-502.59793417,0.00017534,2]
[371751595,1752417050871,-460.0,0.00017534,2]
[371751596,1752417050880,-460.0,0.00017534,2]
[371751597,1752417050890,-460.0,0.00017534,2]
[371751598,1752417050899,-460.0,0.00017534,2]
[371751599,1752417050911,-460.0,0.00017534,2]
[371751600,1752417050920,-460.0,0.00017534,2]
[371751601,1752417050929,-460.0,0.00017534,2]
[371751602,1752417050940,-648.37,0.00017534,2]
[371751603,1752417050950,-673.61,0.00017534,2]
[371751604,1752417050959,-460.0,0.00017534,2]
[371751605,1752417050969,-460.0,0.00017534,2]
[371751606,1752417050979,-151.0,0.00017534,2]
[371751607,1752417050989,-557.7,0.00017534,2]
[371751608,1752417050998,-460.0,0.00017534,2]
[371751609,1752417051007,-151.0,0.00017534,2]
[371751610,1752417051017,-460.0,0.00017534,2]
[371751611,1752417051027,-460.0,0.00017534,2]
[371751612,1752417051036,-460.0,0.00017534,2]
[371751613,1752417051046,-460.0,0.00017534,2]
[371751614,1752417051055,-560.31337563,0.00017534,2]
[371751615,1752417051065,-460.0,0.00017534,2]
[371751616,1752417051074,-460.0,0.00017534,2]
[371751617,1752417051083,-241.39046,0.00017534,2]
[371751618,1752417051092,-513.10647352,0.00017534,2]
[371751619,1752417051102,-241.39046,0.00017534,2]
[371751620,1752417051111,-151.0,0.00017534,2]
[371751621,1752417051121,-460.0,0.00017534,2]
[371751622,1752417051131,-460.0,0.00017534,2]
[371751623,1752417051140,-460.0,0.00017534,2]
[371751624,1752417051149,-576.54,0.00017534,2]
[371751625,1752417051159,-460.0,0.00017534,2]
[371751626,1752417051169,-460.0,0.00017534,2]
[371751627,1752417051179,-460.0,0.00017534,2]
[371751628,1752417051190,-460.0,0.00017534,2]
[371751629,1752417051200,-1648.08,0.00017534,2]
[371751630,1752417051213,-320.05533489,0.00017534,2]
[371751631,1752417051224,-460.0,0.00017534,2]
[371751632,1752417051233,-460.0,0.00017534,2]
[371751633,1752417051243,-498.33,0.00017534,2]
[371751634,1752417051252,-460.0,0.00017534,2]
[371751635,1752417051261,-460.0,0.00017534,2]
[371751636,1752417051271,-460.0,0.00017534,2]
[371751637,1752417051281,-460.0,0.00017534,2]
[371751638,1752417051290,-650.21,0.00017534,2]
[371751639,1752417051300,-460.0,0.00017534,2]
[371751640,1752417051311,-460.0,0.00017534,2]
[371751641,1752417051321,-2049.75,0.00017534,2]
[371751642,1752417051331,-460.0,0.00017534,2]
[371751643,1752417051340,-460.0,0.00017534,2]
[371751644,1752417051349,-2391.08,0.00017534,2]
[371751645,1752417051359,-1185.33,0.00017534,2]
[371751646,1752417051368,-460.0,0.00017534,2]
[371751647,1752417051378,-460.0,0.00017534,2]
[371751648,1752417051387,-460.0,0.00017534,2]
[371751649,1752417051396,-460.0,0.00017534,2]
[371751650,1752417051488,-460.0,0.00017534,2]
[371751651,1752417051498,-460.0,0.00017534,2]
[371751652,1752417051508,-460.0,0.00017534,2]
[371751653,1752417051517,-265.31216949,0.00017534,2]
[371751654,1752417051527,-460.0,0.00017534,2]
[371751655,1752417051536,-540.0,0.00017534,2]
[371751656,1752417051545,-460.0,0.00017534,2]
[371751657,1752417051555,-638.03,0.00017534,2]
[371751658,1752417051564,-566.49,0.00017534,2]
[371751659,1752417051573,-460.0,0.00017534,2]
[371751660,1752417051582,-460.0,0.00017534,2]
[371751661,1752417051591,-460.0,0.00017534,2]
[371751662,1752417051601,-460.0,0.00017534,2]
[371751663,1752417051610,-566.53,0.00017534,2]
[371751664,1752417051620,-469.79,0.00017534,2]
[371751665,1752417051630,-460.0,0.00017534,2]
[371751666,1752417051640,-322.03,0.00017534,2]
[371751667,1752417051649,-460.0,0.00017534,2]
[371751668,1752417051658,-533.19,0.00017534,2]
[371751669,1752417051667,-460.0,0.00017534,2]
[371751670,1752417051677,-1700.96,0.00017534,2]
[371751671,1752417051686,-460.0,0.00017534,2]
[371751672,1752417051698,-888.31,0.00017534,2]
[371751673,1752417051707,-460.0,0.00017534,2]
[371751674,1752417051716,-460.0,0.00017534,2]
[371751675,1752417051726,-512.21,0.00017534,2]
[371751676,1752417051735,-460.0,0.00017534,2]
[371751677,1752417051745,-460.0,0.00017534,2]
[371751678,1752417051754,-460.0,0.00017534,2]
[371751679,1752417051763,-460.0,0.00017534,2]
[371751680,1752417051772,-581.54,0.00017534,2]
[371751681,1752417051782,-506.15,0.00017534,2]
[371751682,1752417051791,-2385.39,0.00017534,2]
[371751683,1752417051801,-460.0,0.00017534,2]
[371751684,1752417051811,-460.0,0.00017534,2]
[371751685,1752417051820,-498.33,0.00017534,2]
[371751686,1752417051830,-460.0,0.00017534,2]
[371751687,1752417051839,-460.0,0.00017534,2]
[371751688,1752417051849,-460.0,0.00017534,2]
[371751689,1752417051858,-460.0,0.00017534,2]
[371751690,1752417051869,-460.0,0.00017534,2]
[371751691,1752417051880,-460.0,0.00017534,2]
[371751692,1752417051890,-1227.15,0.00017534,2]
[371751693,1752417051899,-460.0,0.00017534,2]
[371751694,1752417051909,-964.9,0.00017534,2]
[371751695,1752417051919,-460.0,0.00017534,2]
[371751696,1752417051928,-227.09,0.00017534,2]
[371751697,1752417051938,-460.0,0.00017534,2]
[371751698,1752417051949,-460.0,0.00017534,2]
[371751699,1752417051958,-460.0,0.00017534,2]
[371751700,1752417051968,-460.0,0.00017534,2]
[371751701,1752417051978,-460.0,0.00017534,2]
[371751702,1752417051987,-460.0,0.00017534,2]
[371751703,1752417051996,-177.559413,0.00017555,2]
[371751704,1752417052005,-449.33250482,0.00017568,2]
[371751705,1752417052014,-177.559413,0.00017636,2]
[371751706,1752417052023,-17659.07792108,0.00017708,2]
[371751707,1752417052032,-151.0,0.00017708,2]
[371751708,1752417052042,-177.559413,0.00017717,2]
[371751709,1752417052052,-177.559413,0.00017799,2]
[371751710,1752417052061,-460.0,0.00017807,2]
[371751711,1752417052070,-660.78,0.00017807,2]
[371751712,1752417052079,-460.0,0.00017807,2]
[371751713,1752417052089,-897.35,0.00017807,2]
[371751714,1752417052098,-460.0,0.00017807,2]
[371751715,1752417052107,-500.0,0.00017807,2]
[371751716,1752417052117,-3077.37,0.00017807,2]
[371751717,1752417052126,-460.0,0.00017807,2]
[371751718,1752417052135,-485.94,0.00017807,2]
[371751719,1752417052145,-460.0,0.00017807,2]
[371751720,1752417052154,-782.43,0.00017807,2]
[371751721,1752417052163,-1292.91,0.00017807,2]
[371751722,1752417052172,-676.84,0.00017807,2]
[371751723,1752417052182,-460.0,0.00017807,2]
[371751724,1752417052192,-557.4,0.00017808,2]
[371751725,1752417052201,-460.0,0.00017808,2]
[371751726,1752417052210,-460.0,0.00017808,2]
[371751727,1752417052219,-460.0,0.00017808,2]
[371751728,1752417052229,-460.0,0.00017808,2]
[371751729,1752417052238,-460.0,0.00017808,2]
[371751730,1752417052248,-500.69799627,0.00017808,2]
[371751731,1752417052257,-382.19990364,0.00017808,2]
[371751732,1752417052267,-460.0,0.00017808,2]
[371751733,1752417052276,-460.0,0.00017808,2]
[371751734,1752417052286,-460.0,0.00017808,2]
[371751735,1752417052295,-514.40934441,0.00017808,2]
[371751736,1752417052304,-519.91,0.00017808,2]
[371751737,1752417052313,-460.0,0.00017808,2]
[371751738,1752417052323,-460.0,0.00017808,2]
[371751739,1752417052333,-486.86584698,0.00017808,2]
[371751740,1752417052344,-190.84,0.00017808,2]
[371751741,1752417052354,-466.27,0.00017808,2]
[371751742,1752417052363,-460.0,0.00017808,2]
[371751743,1752417052373,-460.0,0.00017808,2]
[371751744,1752417052382,-607.19243337,0.00017808,2]
[371751745,1752417052392,-581.35,0.00017808,2]
[371751746,1752417052401,-460.0,0.00017808,2]
[371751747,1752417052410,-460.0,0.00017808,2]
[371751748,1752417052419,-460.0,0.00017808,2]
[371751749,1752417052429,-381.43,0.00017808,2]
[371751750,1752417052439,-460.0,0.00017808,2]
[371751751,1752417052449,-460.0,0.00017808,2]
[371751752,1752417052459,-460.0,0.00017808,2]
[371751753,1752417052468,-648.37,0.00017808,2]
[371751754,1752417052481,-673.61,0.00017808,2]
[371751755,1752417052493,-460.0,0.00017808,2]
[371751756,1752417052503,-460.0,0.00017808,2]
[371751757,1752417052513,-557.7,0.00017808,2]
[371751758,1752417052523,-460.0,0.00017808,2]
[371751759,1752417052532,-460.0,0.00017808,2]
[371751760,1752417052542,-460.0,0.00017808,2]
[371751761,1752417052552,-460.0,0.00017808,2]
[371751762,1752417052561,-460.0,0.00017808,2]
[371751763,1752417052570,-460.0,0.00017808,2]
[371751764,1752417052579,-460.0,0.00017808,2]
[371751765,1752417052590,-460.0,0.00017808,2]
[371751766,1752417052599,-460.0,0.00017808,2]
[371751767,1752417052608,-460.0,0.00017808,2]
[371751768,1752417052617,-576.54,0.00017808,2]
[371751769,1752417052626,-460.0,0.00017808,2]
[371751770,1752417052635,-460.0,0.00017808,2]
[371751771,1752417052644,-460.0,0.00017808,2]
[371751772,1752417052652,-1648.08,0.00017808,2]
[371751773,1752417052660,-460.0,0.00017808,2]
[371751774,1752417052669,-460.0,0.00017808,2]
[371751775,1752417052679,-460.0,0.00017808,2]
[371751776,1752417052689,-498.33,0.00017808,2]
[371751777,1752417052700,-460.0,0.00017808,2]
[371751778,1752417052709,-460.0,0.00017808,2]
[371751779,1752417052718,-460.0,0.00017808,2]
[371751780,1752417052728,-460.0,0.00017808,2]
[371751781,1752417052737,-650.21,0.00017808,2]
[371751782,1752417052746,-460.0,0.00017808,2]
[371751783,1752417052756,-460.0,0.00017808,2]
[371751784,1752417052766,-2049.75,0.00017808,2]
[371751785,1752417052775,-460.0,0.00017808,2]
[371751786,1752417052785,-460.0,0.00017808,2]
[371751787,1752417052795,-2391.08,0.00017808,2]
[371751788,1752417052805,-1185.33,0.00017808,2]
[371751789,1752417052814,-464.37222768,0.00017808,2]
[371751790,1752417052823,-431.92151567,0.00017808,2]
[371751791,1752417052832,-460.0,0.00017808,2]
[371751792,1752417052841,-460.0,0.00017808,2]
[371751793,1752417052851,-460.0,0.00017808,2]
[371751794,1752417052860,-460.0,0.00017808,2]
[371751795,1752417052874,-460.0,0.00017808,2]
[371751796,1752417052884,-460.0,0.00017808,2]
[371751797,1752417052893,-460.0,0.00017808,2]
[371751798,1752417052903,-638.03,0.00017808,2]
[371751799,1752417052913,-566.49,0.00017808,2]
[371751800,1752417052923,-460.0,0.00017808,2]
[371751801,1752417052932,-460.0,0.00017808,2]
[371751802,1752417052944,-460.0,0.00017808,2]
[371751803,1752417052953,-460.0,0.00017808,2]
[371751804,1752417052963,-566.53,0.00017808,2]
[371751805,1752417052972,-469.79,0.00017808,2]
[371751806,1752417052982,-460.0,0.00017808,2]
[371751807,1752417052991,-460.0,0.00017808,2]
[371751808,1752417053000,-533.19,0.00017808,2]
[371751809,1752417053009,-460.0,0.00017808,2]
[371751810,1752417053095,-1700.96,0.00017808,2]
[371751811,1752417053105,-201.49230578,0.00017808,2]
[371751812,1752417053115,-888.31,0.00017808,2]
[371751813,1752417053124,-460.0,0.00017808,2]
[371751814,1752417053133,-460.0,0.00017808,2]
[371751815,1752417053142,-512.21,0.00017808,2]
[371751816,1752417053151,-460.0,0.00017808,2]
[371751817,1752417053160,-460.0,0.00017808,2]
[371751818,1752417053169,-460.0,0.00017808,2]
[371751819,1752417053178,-460.0,0.00017808,2]
[371751820,1752417053187,-581.54,0.00017808,2]
[371751821,1752417053199,-506.15,0.00017808,2]
[371751822,1752417053208,-2385.39,0.00017808,2]
[371751823,1752417053218,-151.0,0.00017808,2]
[371751824,1752417053227,-460.0,0.00017808,2]
[371751825,1752417053236,-460.0,0.00017808,2]
[371751826,1752417053245,-460.0,0.00017808,2]
[371751827,1752417053255,-498.33,0.00017808,2]
[371751828,1752417053264,-460.0,0.00017808,2]
[371751829,1752417053276,-460.0,0.00017808,2]
[371751830,1752417053287,-460.0,0.00017808,2]
[371751831,1752417053296,-460.0,0.00017808,2]
[371751832,1752417053306,-223.54028987,0.00017808,2]
[371751833,1752417053317,-1227.15,0.00017808,2]
[371751834,1752417053327,-219.44,0.00017808,2]
[371751835,1752417053338,-964.9,0.00017808,2]
[371751836,1752417053348,-460.0,0.00017808,2]
[371751837,1752417053359,-460.0,0.00017808,2]
[371751838,1752417053369,-460.0,0.00017808,2]
[371751839,1752417053379,-460.0,0.00017808,2]
[371751840,1752417053389,-460.0,0.00017808,2]
[371751841,1752417053399,-3764.42934704,0.00017814,2]
[371751842,1752417053409,-1000.0,0.00017821,2]
[371751843,1752417053419,-366.02,0.00017833,3]
[371751844,1752417053428,-732.02,0.00017853,3]
[371751845,1752417053438,-241.39046,0.00017868,2]
[371751846,1752417053451,-241.39046,0.00017868,2]
[371751847,1752417053462,-151.0,0.00017868,2]
[371751848,1752417053475,-1500.0,0.00017868,2]
[371751849,1752417053488,-509.02355026,0.00017868,2]
[371751850,1752417053498,-1000.0,0.00017868,2]
[371751851,1752417053508,-502.22361763,0.00017868,2]
[371751852,1752417053518,-1500.0,0.00017868,2]
[371751853,1752417053528,-1500.0,0.00017868,2]
[371751854,1752417053538,-1000.0,0.00017868,2]
[371751855,1752417053547,-1500.0,0.00017868,2]
[371751856,1752417053557,-1500.0,0.00017868,2]
[371751857,1752417053566,-1000.0,0.00017868,2]
[371751858,1752417053575,-501.71534255,0.00017868,2]
[371751859,1752417053585,-160.0,0.00017873,2]
[371751860,1752417053597,-287.0,0.00017874,2]
[371751861,1752417053606,-300.0,0.00017874,2]
[371751862,1752417053616,-420.0,0.00017874,2]
[371751863,1752417053625,-177.559413,0.0001788,2]
[371751864,1752417053635,-1000.0,0.00017934,2]
[371751865,1752417053644,-1198.0,0.00017944,2]
[371751866,1752417053654,-177.559413,0.00017961,2]
[371751867,1752417053663,-53597.11129043,0.00018,2]
[371751868,1752417053673,-499.999999,0.00018,2]
[371751869,1752417053682,-151.0,0.00018,2]
[371751870,1752417053692,-177.559413,0.00018042,2]
[371751871,1752417053702,-1464.04,0.00018061,3]